bitfinex/quotes_SOLUSD_20250520
["timestamp","ask_amount","ask_price","bid_price","bid_amount"]
[1747728308091,5.96089651,167.76,167.71,18.64964886]
[1747728309195,14.90109813,167.78,167.71,18.64964886]
[1747728309579,14.90109813,167.78,167.7,17.88]
[1747728310504,14.90109813,167.78,167.71,3.40849419]
[1747728311203,14.90109813,167.78,167.71,22.05814305]
[1747728311996,14.90109813,167.78,167.72,3.40849419]
[1747728312684,27.40464163,167.78,167.72,3.40849419]
[1747728313083,14.90109813,167.78,167.72,3.40849419]
[1747728314205,20.86128408,167.78,167.72,3.40849419]
[1747728315194,12.5035435,167.76,167.72,3.40849419]
[1747728315385,12.5035435,167.75,167.72,3.40849419]
[1747728315887,12.5035435,167.74,167.72,3.40849419]
[1747728316288,5.96196267,167.73,167.72,3.40849419]
[1747728316601,20.86686936,167.73,167.7,17.88]
[1747728318003,5.96196267,167.73,167.7,17.88]
[1747728318504,14.90296265,167.76,167.7,17.88]
[1747728319401,12.5035435,167.75,167.7,17.88]
[1747728319590,12.5035435,167.74,167.7,17.88]
[1747728320397,20.86686936,167.73,167.7,17.88]
[1747728321101,5.96196267,167.73,167.7,17.88]
[1747728321805,5.96196267,167.73,167.71,3.42114375]
[1747728322190,20.86438151,167.75,167.71,3.42114375]
[1747728323501,20.86438151,167.75,167.7,43.88]
[1747728324300,14.90312965,167.75,167.7,43.88]
[1747728325301,20.86065084,167.78,167.7,43.88]
[1747728326736,20.86065084,167.78,167.71,3.42122871]
[1747728327812,20.86065084,167.78,167.72,3.42122871]
[1747728328292,33.36419434,167.78,167.72,3.42122871]
[1747728329191,12.5035435,167.76,167.72,3.42122871]
[1747728329408,12.5035435,167.77,167.71,3.42122871]
[1747728329714,20.86065084,167.78,167.71,3.42122871]
[1747728330006,14.90046489,167.78,167.72,18.64964886]
[1747728330717,5.95947556,167.8,167.73,26.0]
[1747728330884,5.95947556,167.8,167.74,18.64964886]
[1747728331080,5.95947556,167.8,167.74,22.07087757]
[1747728331712,14.89839961,167.81,167.74,22.07087757]
[1747728332213,14.89839961,167.81,167.75,3.42122871]
[1747728332391,14.89839961,167.81,167.76,17.88]
[1747728333409,14.89839961,167.81,167.77,3.42122871]
[1747728335012,14.89839961,167.81,167.76,17.88]
[1747728337031,14.89839961,167.81,167.76,43.88]
[1747728337398,5.95876534,167.82,167.77,18.64964886]
[1747728338521,12.5035435,167.86,167.77,18.64964886]
[1747728338895,12.5035435,167.86,167.78,3.41422023]
[1747728339706,20.85195113,167.85,167.78,3.41422023]
[1747728340204,20.85195113,167.85,167.79,3.41422023]
[1747728341738,20.85195113,167.85,167.77,18.64964886]
[1747728341901,33.35549463,167.85,167.77,18.64964886]
[1747728343423,33.35549463,167.85,167.78,3.41028265]
[1747728343732,12.5035435,167.83,167.78,3.41028265]
[1747728344326,20.85567869,167.82,167.78,3.41028265]
[1747728344827,20.85567869,167.82,167.76,43.88]
[1747728345529,20.85567869,167.82,167.79,26.0]
[1747728345828,5.95876534,167.82,167.79,26.0]
[1747728346517,14.89493999,167.85,167.81,26.0]
[1747728346715,14.89493999,167.85,167.82,17.86]
[1747728347347,5.9573454,167.86,167.82,17.86]
[1747728347938,33.35425241,167.86,167.82,17.86]
[1747728350833,20.85070891,167.86,167.82,17.86]
[1747728353723,12.5035435,167.84,167.77,26.0]
[1747728353927,50.63743594,167.86,167.75,19.36]
[1747728353928,12.5035435,167.85,167.79,17.86]
[1747728354239,63.14097944,167.86,167.79,17.86]
[1747728354543,44.68009054,167.86,167.79,17.86]
[1747728354720,57.18363404,167.86,167.79,17.86]
[1747728355322,12.5035435,167.85,167.79,17.86]
[1747728355524,12.5035435,167.83,167.79,17.86]
[1747728356528,26.0,167.83,167.79,17.86]
[1747728356844,5.95876534,167.82,167.79,17.86]
[1747728357425,20.85567869,167.82,167.79,17.86]
[1747728361336,14.89691335,167.82,167.79,17.86]
[1747728361850,14.89691335,167.82,167.75,64.00964886]
[1747728362148,14.89691335,167.82,167.78,17.86]
[1747728362849,20.85567869,167.82,167.78,17.86]
[1747728363046,12.5035435,167.81,167.76,3.40631213]
[1747728363261,12.5035435,167.8,167.76,3.40631213]
[1747728363460,12.5035435,167.79,167.76,3.40631213]
[1747728363658,12.5035435,167.79,167.74,17.86]
[1747728365040,20.86065084,167.78,167.74,17.86]
[1747728371351,20.86065084,167.78,167.75,3.414936]
[1747728371937,14.90046489,167.78,167.75,3.414936]
[1747728372946,5.95947556,167.8,167.75,3.414936]
[1747728373147,5.95947556,167.8,167.74,17.86]
[1747728373545,20.85816447,167.8,167.74,17.86]
[1747728373960,14.89868891,167.8,167.74,17.86]
[1747728375766,27.40223241,167.8,167.74,17.86]
[1747728375939,27.40223241,167.8,167.75,3.41804729]
[1747728377263,14.89868891,167.8,167.74,17.86]
[1747728377861,5.95912043,167.81,167.75,18.64964886]
[1747728378246,5.95912043,167.81,167.76,26.0]
[1747728378963,20.85515509,167.83,167.76,26.0]
[1747728379169,20.85515509,167.83,167.77,3.41755197]
[1747728379473,5.95841029,167.83,167.78,44.64964886]
[1747728379650,5.95770032,167.85,167.79,0.28432314]
[1747728379972,5.95770032,167.85,167.81,44.64964886]
[1747728380664,14.89145339,167.89,167.83,18.64964886]
[1747728380852,13.92774191,168.0,167.83,18.64964886]
[1747728381050,137.0,168.09,167.88,26.0]
[1747728381051,50.59824988,167.99,167.88,26.0]
[1747728381243,63.10179338,167.99,167.89,36.50964886]
[1747728381568,12.5035435,167.95,167.89,17.86]
[1747728381747,50.59824988,167.99,167.88,17.86]
[1747728381748,26.0,167.96,167.88,17.86]
[1747728382068,12.5035435,167.92,167.88,17.86]
[1747728382242,12.5035435,167.93,167.88,17.86]
[1747728382971,20.84325868,167.92,167.88,17.86]
[1747728386151,33.34680218,167.92,167.88,17.86]
[1747728386468,20.84325868,167.92,167.88,17.86]
[1747728392768,12.5035435,167.94,167.88,17.86]
[1747728393469,12.5035435,167.92,167.88,17.86]
[1747728393872,12.5035435,167.9,167.88,17.86]
[1747728394476,12.5035435,167.91,167.88,17.86]
[1747728394778,5.95592614,167.9,167.88,17.86]
[1747728395166,18.45946964,167.9,167.88,17.86]
[1747728396078,63.12891573,167.9,167.84,45.34]
[1747728398883,12.5035435,167.88,167.84,19.34]
[1747728399187,20.84946684,167.87,167.82,43.86]
[1747728401680,63.13796298,167.87,167.82,26.0]
[1747728401879,12.5035435,167.86,167.82,26.0]
[1747728403582,20.85195113,167.85,167.82,26.0]
[1747728404083,50.64045276,167.85,167.79,19.32]
[1747728404301,12.5035435,167.82,167.76,17.86]
[1747728404487,12.5035435,167.8,167.76,17.86]
[1747728405256,12.78786664,167.84,167.76,17.86]
[1747728405257,12.5035435,167.81,167.76,17.86]
[1747728405780,0.28432314,167.84,167.76,17.86]
[1747728405781,20.85816447,167.8,167.76,17.86]
[1747728408502,20.85816447,167.8,167.75,43.86]
[1747728409492,12.5035435,167.8,167.75,43.86]
[1747728410586,12.5035435,167.78,167.74,17.86]
[1747728410795,12.5035435,167.8,167.74,17.86]
[1747728411091,29.7957159,167.81,167.74,17.86]
[1747728411596,63.15618091,167.81,167.74,17.86]
[1747728413095,20.85692151,167.81,167.74,17.86]
[1747728414379,20.85692151,167.81,167.75,26.0]
[1747728416831,33.36046501,167.81,167.75,26.0]
[1747728417009,33.36046501,167.81,167.75,43.86]
[1747728417988,20.85692151,167.81,167.75,43.86]
[1747728420208,33.36046501,167.81,167.75,43.86]
[1747728421313,63.15606717,167.81,167.75,43.86]
[1747728421503,12.5035435,167.8,167.75,26.0]
[1747728421698,12.5035435,167.78,167.74,17.86]
[1747728421900,50.65252367,167.81,167.73,26.0]
[1747728422097,12.5035435,167.78,167.73,43.86]
[1747728422516,50.65252367,167.81,167.73,17.86]
[1747728422715,12.5035435,167.78,167.73,17.86]
[1747728423209,50.65252367,167.81,167.73,17.86]
[1747728423408,33.36295109,167.79,167.73,17.86]
[1747728423615,63.16210479,167.79,167.73,17.86]
[1747728423925,12.5035435,167.78,167.71,26.0]
[1747728424094,12.5035435,167.78,167.72,17.86]
[1747728424295,50.65856129,167.79,167.72,17.86]
[1747728424621,12.5035435,167.78,167.73,17.86]
[1747728425696,20.86189425,167.77,167.73,17.86]
[1747728427624,14.90135304,167.77,167.73,17.86]
[1747728428007,5.96018595,167.78,167.73,17.86]
[1747728428008,5.96018595,167.78,167.73,43.86]
[1747728429919,14.89931833,167.8,167.73,43.86]
[1747728430110,14.89931833,167.8,167.74,18.64964886]
[1747728435926,29.79205148,167.83,167.74,18.64964886]
[1747728437137,20.85319351,167.84,167.77,26.0]
[1747728437309,20.85319351,167.84,167.78,17.86]
[1747728437641,5.95805529,167.84,167.79,18.64964886]
[1747728438011,14.89328424,167.87,167.79,18.64964886]
[1747728439828,14.89328424,167.87,167.8,3.40523906]
[1747728440323,20.85027476,167.87,167.8,3.40523906]
[1747728441319,20.85027476,167.87,167.79,18.64964886]
[1747728442515,20.85027476,167.87,167.8,26.0]
[1747728443821,33.35381826,167.87,167.8,26.0]
[1747728444222,33.35381826,167.87,167.81,3.409153]
[1747728444544,12.5035435,167.86,167.81,3.409153]
[1747728445051,12.5035435,167.86,167.8,43.86]
[1747728445210,12.5035435,167.85,167.8,26.0]
[1747728445413,12.5035435,167.85,167.78,63.18]
[1747728445619,20.85319351,167.84,167.78,63.18]
[1747728446438,20.85319351,167.84,167.78,43.86]
[1747728446742,20.85319351,167.84,167.79,3.41174005]
[1747728447315,14.89513822,167.84,167.79,3.41174005]
[1747728447924,14.89513822,167.84,167.78,43.86]
[1747728450631,14.89513822,167.84,167.79,3.41236245]
[1747728451850,42.29027053,167.86,167.79,3.41236245]
[1747728452144,12.5035435,167.82,167.76,26.0]
[1747728452326,12.5035435,167.82,167.77,17.86]
[1747728453155,12.5035435,167.81,167.77,17.86]
[1747728453945,20.85816447,167.8,167.77,17.86]
[1747728455254,12.5035435,167.79,167.74,19.32]
[1747728456150,20.86065084,167.78,167.74,19.32]
[1747728456459,20.86065084,167.78,167.73,17.86]
[1747728459763,33.36419434,167.78,167.73,17.86]
[1747728460060,12.5035435,167.76,167.71,43.86]
[1747728460244,20.8631378,167.76,167.71,43.86]
[1747728462234,20.85940759,167.79,167.72,3.41189132]
[1747728463456,20.85940759,167.79,167.73,3.41189132]
[1747728463666,14.89957685,167.79,167.73,3.41189132]
[1747728464758,14.89957685,167.79,167.71,43.86]
[1747728464759,27.40312035,167.79,167.71,43.86]
[1747728465153,33.36295109,167.79,167.71,43.86]
[1747728465866,33.36295109,167.79,167.72,3.41135227]
[1747728466764,12.5035435,167.78,167.72,3.41135227]
[1747728466951,12.5035435,167.77,167.72,21.27135227]
[1747728467265,20.8631378,167.76,167.72,21.27135227]
[1747728467463,20.8631378,167.76,167.68,18.64964886]
[1747728467464,33.3666813,167.76,167.69,26.0]
[1747728467637,33.3666813,167.76,167.7,17.88]
[1747728468367,20.8631378,167.76,167.7,17.88]
[1747728469666,12.5035435,167.76,167.7,17.88]
[1747728469960,50.65856129,167.79,167.7,17.88]
[1747728470141,12.5035435,167.78,167.7,17.88]
[1747728470666,50.65856129,167.79,167.7,36.52964886]
[1747728471076,50.65856129,167.79,167.71,3.41010905]
[1747728471961,50.65856129,167.79,167.72,3.41010905]
[1747728473266,50.65856129,167.79,167.71,3.41010905]
[1747728475473,12.5035435,167.78,167.71,3.41010905]
[1747728476254,20.86189425,167.77,167.71,3.41010905]
[1747728478474,14.90135304,167.77,167.71,3.41010905]
[1747728480380,20.86189425,167.77,167.71,3.41010905]
[1747728489998,12.5035435,167.75,167.71,3.41010905]
[1747728490297,12.5035435,167.74,167.71,3.41010905]
[1747728490885,12.5035435,167.75,167.71,3.41010905]
[1747728491180,12.5035435,167.75,167.68,3.41010905]
[1747728491902,20.86562536,167.74,167.68,3.41010905]
[1747728493878,14.90401812,167.74,167.69,3.41010905]
[1747728495482,14.90401812,167.74,167.7,3.41010905]
[1747728496899,14.90401812,167.74,167.71,3.41010905]
[1747728498392,14.90401812,167.74,167.72,3.41010905]
[1747728499995,5.96089651,167.76,167.72,3.41010905]
[1747728500294,5.96089651,167.76,167.67,80.187063]
[1747728500295,5.96089651,167.76,167.73,3.41010905]
[1747728500878,20.8631378,167.76,167.73,3.41010905]
[1747728501283,20.8631378,167.76,167.74,3.41010905]
[1747728502073,20.8631378,167.76,167.7,3.41010905]
[1747728503110,12.5035435,167.75,167.7,12.59690731]
[1747728503490,12.5035435,167.75,167.71,3.41010905]
[1747728504390,63.17116389,167.76,167.71,3.41010905]
[1747728504783,63.17116389,167.76,167.72,3.41010905]
[1747728504985,50.66762039,167.76,167.72,3.41010905]
[1747728505517,12.5035435,167.74,167.72,3.41010905]
[1747728505983,12.5035435,167.74,167.73,3.41010905]
[1747728507210,12.5035435,167.74,167.71,3.41010905]
[1747728507707,20.86562536,167.74,167.71,3.41010905]
[1747728507999,33.36916886,167.74,167.71,3.41010905]
[1747728508180,20.86562536,167.74,167.71,3.41010905]
[1747728508698,20.86562536,167.74,167.72,3.41010905]
[1747728509577,14.90401812,167.74,167.72,3.41010905]
[1747728509785,14.90401812,167.74,167.69,9.18679826]
[1747728510599,14.90401812,167.74,167.7,17.88]
[1747728511007,14.90401812,167.74,167.7,27.06679826]
[1747728511206,14.90401812,167.74,167.71,3.42402612]
[1747728511814,12.5035435,167.76,167.71,3.42402612]
[1747728512387,12.5035435,167.76,167.72,3.42402612]
[1747728513104,12.5035435,167.75,167.72,3.42402612]
[1747728513413,12.5035435,167.74,167.72,3.42402612]
[1747728513622,149.78786664,167.73,167.72,3.42402612]
[1747728513908,0.28432314,167.72,167.69,9.18679826]
[1747728514213,12.78786664,167.7,167.69,9.18679826]
[1747728515408,18.75089585,167.7,167.69,9.18679826]
[1747728515992,18.75089585,167.7,167.6,17.88]
[1747728515993,63.47361498,167.7,167.62,9.18679826]
[1747728516200,12.5035435,167.66,167.62,9.18679826]
[1747728517313,33.37787999,167.67,167.62,9.18679826]
[1747728517502,20.87433649,167.67,167.6,17.88]
[1747728518415,33.37787999,167.67,167.6,17.88]
[1747728518912,33.37787999,167.67,167.61,3.41418484]
[1747728519716,38.5035435,167.64,167.61,3.41418484]
[1747728519916,12.5035435,167.62,167.61,3.41418484]
[1747728520119,12.5035435,167.62,167.58,9.18679826]
[1747728520292,12.5035435,167.61,167.58,9.18679826]
[1747728521315,12.5035435,167.6,167.58,9.18679826]
[1747728522025,12.5035435,167.6,167.54,37.18]
[1747728522026,5.96694313,167.59,167.54,37.18]
[1747728522324,33.38784446,167.59,167.54,17.88]
[1747728522492,12.5035435,167.58,167.54,17.88]
[1747728522694,12.5035435,167.58,167.53,17.88]
[1747728524120,20.88679357,167.57,167.52,27.06679826]
[1747728525122,33.39033707,167.57,167.52,27.06679826]
[1747728525318,33.39033707,167.57,167.52,17.88]
[1747728526331,20.88679357,167.57,167.52,17.88]
[1747728527318,14.91913827,167.57,167.52,17.88]
[1747728530438,14.91913827,167.57,167.53,17.88]
[1747728531430,5.9672992,167.58,167.53,17.88]
[1747728531736,5.96694313,167.59,167.53,17.88]
[1747728531908,20.88430096,167.59,167.53,17.88]
[1747728533038,27.42090133,167.59,167.53,17.88]
[1747728533538,14.91735783,167.59,167.53,17.88]
[1747728533845,27.42090133,167.59,167.53,17.88]
[1747728534339,14.91735783,167.59,167.53,17.88]
[1747728534540,14.91735783,167.59,167.54,18.64964886]
[1747728534907,5.96658711,167.6,167.54,18.64964886]
[1747728535235,5.96623113,167.61,167.54,50.6183557]
[1747728535730,5.96623113,167.61,167.54,44.64964886]
[1747728536423,5.96623113,167.61,167.58,18.64964886]
[1747728536624,5.96623113,167.61,167.59,17.88]
[1747728537208,20.87761752,167.65,167.59,17.88]
[1747728538609,63.20519919,167.65,167.59,17.88]
[1747728538818,12.5035435,167.64,167.59,17.88]
[1747728539109,50.70165569,167.65,167.59,17.88]
[1747728539308,63.20519919,167.65,167.59,17.88]
[1747728540032,20.87761752,167.65,167.59,17.88]
[1747728541431,20.87761752,167.65,167.6,18.64964886]
[1747728543452,33.38116102,167.65,167.59,17.88]
[1747728543733,20.87761752,167.65,167.59,17.88]
[1747728543938,20.87761752,167.65,167.6,18.64964886]
[1747728545235,14.91280989,167.65,167.6,18.64964886]
[1747728549451,12.5035435,167.63,167.58,43.88]
[1747728550034,12.5035435,167.64,167.58,43.88]
[1747728550349,20.87931753,167.63,167.58,43.88]
[1747728552475,12.5035435,167.62,167.56,18.64964886]
[1747728552770,50.70691402,167.63,167.55,17.88]
[1747728552771,12.5035435,167.6,167.55,17.88]
[1747728553163,12.5035435,167.6,167.55,43.88]
[1747728554581,20.88430096,167.59,167.55,43.88]
[1747728555659,14.91735783,167.59,167.55,43.88]
[1747728556767,27.42090133,167.59,167.53,26.0]
[1747728557086,27.42090133,167.59,167.54,17.88]
[1747728557984,12.5035435,167.58,167.54,17.88]
[1747728558208,12.5035435,167.57,167.53,17.88]
[1747728558561,12.5035435,167.58,167.53,17.88]
[1747728559507,63.22256013,167.59,167.53,17.88]
[1747728560216,63.22256013,167.59,167.54,3.41734309]
[1747728561517,63.22256013,167.59,167.53,17.88]
[1747728563231,12.5035435,167.57,167.52,19.3]
[1747728563419,12.5035435,167.55,167.52,19.3]
[1747728563718,5.96872388,167.54,167.52,17.88]
[1747728565521,20.88936738,167.55,167.52,17.88]
[1747728567511,14.92099973,167.55,167.52,17.88]
[1747728568034,14.92099973,167.55,167.51,1.6342]
[1747728568232,14.92099973,167.55,167.51,19.5342]
[1747728568914,12.5035435,167.52,167.51,1.6342]
[1747728569732,5.96943648,167.52,167.51,1.6342]
[1747728574231,20.88936738,167.55,167.51,1.6342]
[1747728575027,33.39291088,167.55,167.51,1.6342]
[1747728575640,20.88936738,167.55,167.51,1.6342]
[1747728576423,33.39291088,167.55,167.51,1.6342]
[1747728580147,12.5035435,167.52,167.51,1.6342]
[1747728581843,18.47297998,167.52,167.51,1.6342]
[1747728583958,18.51030065,167.52,167.51,1.6342]
[1747728585346,5.96943648,167.52,167.51,1.6342]
[1747728586967,5.96908016,167.53,167.51,1.6342]
[1747728587340,5.96908016,167.53,167.51,14.17506417]
[1747728587540,5.96908016,167.53,167.51,1.6342]
[1747728587870,12.54086417,167.52,167.51,1.6342]
[1747728588046,12.82518731,167.52,167.51,1.6342]
[1747728588984,18.79462379,167.52,167.51,1.6342]
[1747728596076,18.51030065,167.52,167.51,1.6342]
[1747728596277,5.96943648,167.52,167.51,1.6342]
[1747728597182,18.51030065,167.52,167.51,1.6342]
[1747728597861,18.79462379,167.52,167.51,1.6342]
[1747728598482,18.79508753,167.52,167.51,1.6342]
[1747728604892,5.96943648,167.52,167.51,1.6342]
[1747728605267,18.51076439,167.52,167.51,1.6342]
[1747728605790,18.79508753,167.52,167.51,1.6342]
[1747728612201,5.96943648,167.52,167.51,1.6342]
[1747728618112,20.89061533,167.54,167.51,1.6342]
[1747728620111,14.92189145,167.54,167.51,1.6342]
[1747728621415,14.92189145,167.54,167.52,3.42372792]
[1747728622722,14.92189145,167.54,167.51,1.6342]
[1747728625705,14.92189145,167.54,167.52,3.42223369]
[1747728627637,14.92189145,167.54,167.51,1.6342]
[1747728632424,27.46321936,167.54,167.51,1.6342]
[1747728633023,14.92189145,167.54,167.51,1.6342]
[1747728634230,20.89061533,167.54,167.51,1.6342]
[1747728636419,14.92189145,167.54,167.51,1.6342]
[1747728644839,27.46321936,167.54,167.51,1.6342]
[1747728645139,12.54132791,167.53,167.51,1.6342]
[1747728645333,12.54132791,167.52,167.51,1.6342]
[1747728646441,18.51076439,167.52,167.51,1.6342]
[1747728649042,5.96943648,167.52,167.51,1.6342]
[1747728650414,5.96943648,167.52,167.51,5.05671734]
[1747728650614,20.89061533,167.54,167.51,5.05671734]
[1747728651438,20.89061533,167.54,167.51,1.6342]
[1747728654141,20.89061533,167.54,167.52,3.42381904]
[1747728655547,20.88679357,167.57,167.52,3.42381904]
[1747728655724,20.88679357,167.57,167.53,3.42381904]
[1747728656616,20.88679357,167.57,167.54,18.64964886]
[1747728657639,14.91913827,167.57,167.55,3.42381904]
[1747728659253,27.46046618,167.57,167.55,3.42381904]
[1747728659851,27.46046618,167.57,167.52,3.42381904]
[1747728660255,14.91913827,167.57,167.52,3.42381904]
[1747728660753,14.91913827,167.57,167.53,3.42381904]
[1747728661332,12.54132791,167.56,167.53,3.42381904]
[1747728661544,20.88679357,167.57,167.53,3.42381904]
[1747728661755,33.42812148,167.57,167.53,3.42381904]
[1747728662661,12.54132791,167.56,167.53,3.42381904]
[1747728663058,12.54132791,167.56,167.52,3.42381904]
[1747728663444,20.88928677,167.55,167.52,3.42381904]
[1747728664754,20.88928677,167.55,167.53,3.42381904]
[1747728665143,5.96836765,167.55,167.53,3.42381904]
[1747728665365,5.96836765,167.55,167.54,18.64964886]
[1747728665662,14.91898026,167.58,167.54,22.0734679]
[1747728665964,14.91898026,167.58,167.55,17.9]
[1747728666762,5.96694313,167.59,167.55,17.9]
[1747728667941,5.96694313,167.59,167.56,3.42526606]
[1747728668135,20.88430096,167.59,167.56,3.42526606]
[1747728669662,20.88430096,167.59,167.55,17.9]
[1747728671451,20.88430096,167.59,167.56,17.9]
[1747728671851,5.96694313,167.59,167.56,17.9]
[1747728672062,8.30964417,167.6,167.57,18.64964886]
[1747728672442,2.342917,167.6,167.57,44.64964886]
[1747728673164,2.342917,167.6,167.58,3.41947709]
[1747728673742,8.30952752,167.6,167.58,3.41947709]
[1747728674565,8.30952752,167.6,167.59,3.41947709]
[1747728675972,23.2259953,167.6,167.56,9.18679826]
[1747728676348,23.2259953,167.6,167.55,17.9]
[1747728677565,35.76732321,167.6,167.56,3.41601892]
[1747728677862,12.54132791,167.57,167.56,3.41601892]
[1747728678664,12.54132791,167.57,167.52,9.18679826]
[1747728678872,12.54132791,167.55,167.52,9.18679826]
[1747728679060,12.54132791,167.55,167.51,1.6342]
[1747728679371,20.89053359,167.54,167.51,1.6342]
[1747728680573,20.89053359,167.54,167.52,18.64964886]
[1747728680879,20.89053359,167.54,167.51,1.6342]
[1747728681978,14.92180971,167.54,167.51,1.6342]
[1747728683162,5.96836765,167.55,167.52,3.41707822]
[1747728683777,5.96836765,167.55,167.52,22.06672708]
[1747728684379,2.342917,167.6,167.53,3.41707822]
[1747728684578,2.342917,167.6,167.55,44.64964886]
[1747728684579,5.96694313,167.59,167.55,44.64964886]
[1747728684955,8.30959939,167.6,167.55,44.64964886]
[1747728685955,8.30959939,167.6,167.56,3.41707822]
[1747728686780,2.342917,167.6,167.57,18.64964886]
[1747728687158,2.342917,167.6,167.59,44.64964886]
[1747728688691,2.342917,167.6,167.59,48.06672708]
[1747728688870,8.30950411,167.6,167.59,3.41707822]
[1747728689772,2.342917,167.6,167.57,50.61720144]
[1747728690470,2.342917,167.6,167.58,0.28432314]
[1747728690787,5.96374045,167.68,167.63,44.64964886]
[1747728690977,5.96374045,167.68,167.64,17.88]
[1747728691290,5.96374045,167.68,167.65,18.64964886]
[1747728692281,20.87091277,167.7,167.65,18.64964886]
[1747728692864,33.41224068,167.7,167.64,17.88]
[1747728693472,12.54132791,167.69,167.64,17.88]
[1747728694591,20.87309159,167.68,167.64,17.88]
[1747728696076,33.4144195,167.68,167.64,17.88]
[1747728696275,33.4144195,167.68,167.61,36.52964886]
[1747728696668,33.4144195,167.68,167.61,62.52964886]
[1747728697994,12.54132791,167.67,167.61,17.88]
[1747728698185,12.54132791,167.65,167.61,17.88]
[1747728698380,12.54132791,167.63,167.58,18.64964886]
[1747728698677,20.88056317,167.62,167.58,18.64964886]
[1747728698877,5.96587519,167.62,167.58,18.64964886]
[1747728699592,5.96587519,167.62,167.56,26.0]
[1747728699800,12.54132791,167.61,167.57,17.88]
[1747728700101,12.54132791,167.6,167.55,36.52964886]
[1747728700309,12.54132791,167.61,167.55,62.52964886]
[1747728700675,5.96658711,167.6,167.55,62.52964886]
[1747728700876,5.96658711,167.6,167.56,3.40695395]
[1747728702291,5.96658711,167.6,167.55,62.52964886]
[1747728704107,5.96658711,167.6,167.55,68.49798971]
[1747728704282,5.96587519,167.62,167.55,68.49798971]
[1747728704598,5.96551929,167.63,167.56,3.40724777]
[1747728705680,27.45402889,167.65,167.59,18.64964886]
[1747728705879,14.91270098,167.65,167.59,18.64964886]
[1747728706104,5.96445186,167.66,167.59,18.64964886]
[1747728707401,20.87380232,167.68,167.63,18.64964886]
[1747728707590,20.87380232,167.68,167.64,17.88]
[1747728710721,33.41513023,167.68,167.64,17.88]
[1747728711735,12.54132791,167.66,167.64,17.88]
[1747728711927,12.54132791,167.66,167.62,17.88]
[1747728712231,12.54132791,167.65,167.6,62.52964886]
[1747728712433,12.54132791,167.64,167.6,17.88]
[1747728713297,20.87931753,167.63,167.6,17.88]
[1747728715324,14.91379824,167.63,167.6,17.88]
[1747728717830,27.45512615,167.63,167.58,19.52]
[1747728718008,12.54132791,167.62,167.59,17.88]
[1747728718213,12.54132791,167.61,167.57,43.88]
[1747728718623,12.54132791,167.61,167.58,3.40935786]
[1747728719532,5.96658711,167.6,167.58,3.40935786]
[1747728720225,20.88305489,167.6,167.57,17.88]
[1747728720599,33.4243828,167.6,167.57,17.88]
[1747728720799,12.54132791,167.59,167.55,9.18679826]
[1747728720998,12.54132791,167.59,167.55,27.06679826]
[1747728721522,20.8855472,167.58,167.55,27.06679826]
[1747728722238,12.54132791,167.57,167.54,17.88]
[1747728722823,33.42687511,167.58,167.54,17.88]
[1747728723426,33.42687511,167.58,167.53,37.4]
[1747728724804,33.42687511,167.58,167.54,3.41198656]
[1747728725204,12.54132791,167.56,167.54,3.41198656]
[1747728725405,12.54132791,167.55,167.54,3.41198656]
[1747728726934,20.89053359,167.54,167.51,1.6342]
[1747728727134,12.54132791,167.53,167.51,1.6342]
[1747728728836,33.4318615,167.54,167.51,1.6342]
[1747728729025,5.96943648,167.52,167.51,1.6342]
[1747728730442,18.51076439,167.52,167.51,1.6342]
[1747728732841,5.96943648,167.52,167.51,1.6342]
[1747728733515,31.0520923,167.52,167.51,1.6342]
[1747728733720,26.0,167.49,167.48,6.1173]
[1747728733920,38.82565105,167.49,167.48,6.1173]
[1747728734221,0.28432314,167.48,167.41,9.18679826]
[1747728734434,18.79865308,167.42,167.41,9.18679826]
[1747728736836,18.79865308,167.42,167.34,17.9]
[1747728737018,12.54132791,167.39,167.34,17.9]
[1747728738046,21.18983024,167.42,167.34,17.9]
[1747728738047,18.51575735,167.38,167.34,17.9]
[1747728738427,33.45183095,167.38,167.34,17.9]
[1747728738940,33.45183095,167.38,167.3,18.64964886]
[1747728738941,12.54132791,167.35,167.3,18.64964886]
[1747728739142,12.54132791,167.35,167.31,17.9]
[1747728739340,12.54132791,167.35,167.3,17.9]
[1747728739541,12.54132791,167.36,167.3,36.54964886]
[1747728739932,5.97550044,167.35,167.3,36.54964886]